fUST/lending_fUST_20250709
["ID","MTS","AMOUNT","RATE_DAILY","PERIOD"]
[370513131,1752051060514,-460.0,0.0002,2]
[370513132,1752051060524,-225.69,0.0002,2]
[370513133,1752051060534,-460.0,0.0002,2]
[370513134,1752051060609,-460.0,0.0002,2]
[370513135,1752051060619,-460.0,0.0002,2]
[370513136,1752051060628,-463.82926034,0.0002,2]
[370513137,1752051060637,-460.0,0.0002,2]
[370513138,1752051060647,-460.0,0.0002,2]
[370513139,1752051060657,-460.0,0.0002,2]
[370513140,1752051060668,-460.0,0.0002,2]
[370513141,1752051060677,-462.0,0.0002,2]
[370513142,1752051060687,-467.28,0.0002,2]
[370513143,1752051060697,-460.0,0.0002,2]
[370513144,1752051060707,-460.0,0.0002,2]
[370513145,1752051060717,-460.0,0.0002,2]
[370513146,1752051060726,-460.0,0.0002,2]
[370513147,1752051060736,-460.0,0.0002,2]
[370513148,1752051060745,-460.0,0.0002,2]
[370513149,1752051060755,-460.0,0.0002,2]
[370513150,1752051060766,-460.0,0.0002,2]
[370513151,1752051060775,-460.0,0.0002,2]
[370513152,1752051060785,-460.0,0.0002,2]
[370513153,1752051060794,-151.0,0.0002,2]
[370513154,1752051060804,-460.0,0.0002,2]
[370513155,1752051060813,-731.84,0.0002,2]
[370513156,1752051060824,-151.0,0.0002,2]
[370513157,1752051060834,-151.0,0.0002,2]
[370513158,1752051060843,-460.0,0.0002,2]
[370513159,1752051060853,-460.0,0.0002,2]
[370513160,1752051060866,-151.0,0.0002,2]
[370513161,1752051060876,-460.0,0.0002,2]
[370513162,1752051060886,-460.0,0.0002,2]
[370513163,1752051060895,-460.0,0.0002,2]
[370513164,1752051060906,-151.0,0.0002,2]
[370513165,1752051060915,-460.0,0.0002,2]
[370513166,1752051060926,-175.40834771,0.0002,2]
[370513167,1752051060936,-460.0,0.0002,2]
[370513168,1752051060945,-460.0,0.0002,2]
[370513169,1752051060955,-460.0,0.0002,2]
[370513170,1752051060966,-460.0,0.0002,2]
[370513171,1752051060975,-460.0,0.0002,2]
[370513172,1752051060985,-151.0,0.0002,2]
[370513173,1752051060994,-380.4338699,0.0002,2]
[370513174,1752051061004,-460.0,0.0002,2]
[370513175,1752051061014,-460.0,0.0002,2]
[370513176,1752051061025,-460.0,0.0002,2]
[370513177,1752051061034,-460.0,0.0002,2]
[370513178,1752051061043,-267.233877,0.0002,2]
[370513179,1752051061053,-460.0,0.0002,2]
[370513180,1752051061063,-935.16,0.0002,2]
[370513181,1752051061072,-460.0,0.0002,2]
[370513182,1752051061082,-460.0,0.0002,2]
[370513183,1752051061091,-460.0,0.0002,2]
[370513184,1752051061100,-460.0,0.0002,2]
[370513185,1752051061111,-460.0,0.0002,2]
[370513186,1752051061122,-460.0,0.0002,2]
[370513187,1752051061131,-460.0,0.0002,2]
[370513188,1752051061141,-460.0,0.0002,2]
[370513189,1752051061151,-460.0,0.0002,2]
[370513190,1752051061161,-460.0,0.0002,2]
[370513191,1752051061170,-460.0,0.0002,2]
[370513192,1752051061180,-460.0,0.0002,2]
[370513193,1752051061189,-1860.95,0.0002,2]
[370513194,1752051061199,-460.0,0.0002,2]
[370513195,1752051061209,-460.0,0.0002,2]
[370513196,1752051061218,-460.0,0.0002,2]
[370513197,1752051061227,-460.0,0.0002,2]
[370513198,1752051061237,-460.0,0.0002,2]
[370513199,1752051061246,-460.0,0.0002,2]
[370513200,1752051061256,-460.0,0.0002,2]
[370513201,1752051061266,-460.0,0.0002,2]
[370513202,1752051061276,-460.0,0.0002,2]
[370513203,1752051061286,-151.0,0.0002,2]
[370513204,1752051061297,-460.0,0.0002,2]
[370513205,1752051061307,-374.05712751,0.0002,2]
[370513206,1752051061316,-460.0,0.0002,2]
[370513207,1752051061326,-356.05410086,0.0002,2]
[370513208,1752051061538,-103.94589914,0.0002,2]
[370513209,1752051061549,-460.0,0.0002,2]
[370513210,1752051061558,-230.67077921,0.0002,2]
[370513211,1752051061576,-460.0,0.00019178,2]
[370513212,1752051061586,-192.66070144,0.0002,2]
[370513213,1752051061599,-36.66851935,0.0002,2]
[370513214,1752051061609,-460.0,0.0002,2]
[370513215,1752051061620,-612.24199148,0.0002,2]
[370513216,1752051061633,-1339.96800852,0.0002,2]
[370513217,1752051061643,-460.0,0.0002,2]
[370513218,1752051061652,-460.0,0.0002,2]
[370513219,1752051061662,-502.12,0.0002,2]
[370513220,1752051061672,-460.0,0.0002,2]
[370513221,1752051061681,-575.0,0.0002,2]
[370513222,1752051061691,-280.91199148,0.0002,2]
[370513223,1752051061885,-319.42984089,0.00019178,2]
[370513224,1752051062208,-140.57015911,0.00019178,2]
[370513225,1752051062218,-460.0,0.00019178,2]
[370513226,1752051062228,-460.0,0.00019178,2]
[370513227,1752051062238,-460.0,0.00019178,2]
[370513228,1752051062249,-461.05856364,0.00019452,2]
[370513229,1752051062259,-460.0,0.00019452,2]
[370513230,1752051062269,-159.47127725,0.00019452,2]
[370513231,1752051062282,-300.52872275,0.00019452,2]
[370513232,1752051062291,-460.0,0.00019726,2]
[370513233,1752051062301,-460.0,0.00019726,2]
[370513234,1752051062311,-179.08800852,0.0002,2]
[370513235,1752051062321,-1427.76,0.0002,2]
[370513236,1752051062331,-460.0,0.0002,2]
[370513237,1752051062341,-151.0,0.0002,2]
[370513238,1752051062350,-460.0,0.0002,2]
[370513239,1752051062361,-460.0,0.0002,2]
[370513240,1752051062372,-623.93,0.0002,2]
[370513241,1752051062382,-16.32059688,0.0002,2]
[370513242,1752051062399,-443.67940312,0.0002,2]
[370513243,1752051062410,-460.0,0.0002,2]
[370513244,1752051062419,-648.55,0.0002,2]
[370513245,1752051062429,-460.0,0.0002,2]
[370513246,1752051062439,-460.0,0.0002,2]
[370513247,1752051062449,-460.0,0.0002,2]
[370513248,1752051062459,-460.0,0.0002,2]
[370513249,1752051062469,-460.0,0.0002,2]
[370513250,1752051062479,-549.68,0.0002,2]
[370513251,1752051062488,-385.69904935,0.0002,2]
[370513252,1752051062498,-464.24654429,0.0002,2]
[370513253,1752051062508,-460.0,0.0002,2]
[370513254,1752051062518,-460.0,0.0002,2]
[370513255,1752051062527,-460.0,0.0002,2]
[370513256,1752051062537,-460.0,0.0002,2]
[370513257,1752051062547,-460.0,0.0002,2]
[370513258,1752051062556,-460.0,0.0002,2]
[370513259,1752051062566,-460.0,0.0002,2]
[370513260,1752051062576,-460.0,0.0002,2]
[370513261,1752051062586,-460.0,0.0002,2]
[370513262,1752051062596,-460.0,0.0002,2]
[370513263,1752051062606,-871.95,0.0002,2]
[370513264,1752051062615,-1724.72,0.0002,2]
[370513265,1752051062626,-460.0,0.0002,2]
[370513266,1752051062636,-151.0,0.0002,2]
[370513267,1752051062645,-460.0,0.0002,2]
[370513268,1752051062656,-460.0,0.0002,2]
[370513269,1752051062667,-510.35,0.0002,2]
[370513270,1752051062676,-262.39672,0.0002,2]
[370513271,1752051062686,-151.0,0.0002,2]
[370513272,1752051062695,-2703.47,0.0002,2]
[370513273,1752051062706,-460.0,0.0002,2]
[370513274,1752051062716,-262.39672,0.0002,2]
[370513275,1752051062726,-460.0,0.0002,2]
[370513276,1752051062736,-462.48594329,0.0002,2]
[370513277,1752051062745,-460.0,0.0002,2]
[370513278,1752051062757,-460.0,0.0002,2]
[370513279,1752051062767,-460.0,0.0002,2]
[370513280,1752051062777,-484.04,0.0002,2]
[370513281,1752051062786,-460.0,0.0002,2]
[370513282,1752051062796,-460.0,0.0002,2]
[370513283,1752051062806,-460.0,0.0002,2]
[370513284,1752051062815,-460.0,0.0002,2]
[370513285,1752051062825,-460.0,0.0002,2]
[370513286,1752051062835,-460.0,0.0002,2]
[370513287,1752051062848,-460.0,0.0002,2]
[370513288,1752051062863,-946.21,0.0002,2]
[370513289,1752051062884,-1775.28,0.0002,2]
[370513290,1752051062903,-503.41,0.0002,2]
[370513291,1752051062913,-460.0,0.0002,2]
[370513292,1752051062923,-460.0,0.0002,2]
[370513293,1752051062932,-521.94,0.0002,2]
[370513294,1752051062943,-460.0,0.0002,2]
[370513295,1752051062953,-460.0,0.0002,2]
[370513296,1752051062963,-460.0,0.0002,2]
[370513297,1752051062972,-460.0,0.0002,2]
[370513298,1752051062982,-464.84,0.0002,2]
[370513299,1752051062992,-460.0,0.0002,2]
[370513300,1752051063001,-460.0,0.0002,2]
[370513301,1752051063011,-460.0,0.0002,2]
[370513302,1752051063021,-460.0,0.0002,2]
[370513303,1752051063030,-1139.82,0.0002,2]
[370513304,1752051063040,-3320.66,0.0002,2]
[370513305,1752051063051,-460.0,0.0002,2]
[370513306,1752051063061,-460.0,0.0002,2]
[370513307,1752051063071,-4000.0,0.0002,4]
[370513308,1752051063081,-460.0,0.0002,2]
[370513309,1752051063091,-460.0,0.0002,2]
[370513310,1752051063101,-460.0,0.0002,2]
[370513311,1752051063111,-460.0,0.0002,2]
[370513312,1752051063121,-460.0,0.0002,2]
[370513313,1752051063132,-460.0,0.0002,2]
[370513314,1752051063142,-460.0,0.0002,2]
[370513315,1752051063152,-523.35,0.0002,2]
[370513316,1752051063162,-460.0,0.0002,2]
[370513317,1752051063172,-460.0,0.0002,2]
[370513318,1752051063183,-2553.29,0.0002,2]
[370513319,1752051063195,-588.94,0.0002,2]
[370513320,1752051063206,-460.0,0.0002,2]
[370513321,1752051063216,-460.0,0.0002,2]
[370513322,1752051063226,-460.0,0.0002,2]
[370513323,1752051063236,-464.21546419,0.0002,2]
[370513324,1752051063247,-381.2008737,0.00020008,2]
[370513325,1752051063256,-914.81047399,0.00020018,2]
[370513326,1752051063266,-366.56020996,0.00020021,2]
[370513327,1752051063278,-1000.0,0.00020021,2]
[370513328,1752051063289,-1000.0,0.00020021,2]
[370513329,1752051063299,-500.0,0.00020021,2]
[370513330,1752051063309,-500.0,0.00020021,2]
[370513331,1752051063322,-500.0,0.00020021,2]
[370513332,1752051063332,-1000.0,0.00020021,2]
[370513333,1752051063342,-194.23336538,0.00020021,2]
[370513334,1752051063354,-151.0,0.000201,4]
[370513335,1752051063364,-726.83992794,0.00020107,2]
[370513336,1752051063375,-498.54129921,0.00020128,2]
[370513337,1752051063385,-459.85765792,0.00020128,2]
[370513338,1752051063395,-502.91804762,0.00020128,2]
[370513339,1752051063406,-420.0,0.00020145,2]
[370513340,1752051063533,-242.632825,0.00020187,2]
[370513341,1752051063542,-1000.0,0.00020216,2]
[370513342,1752051063552,-215.27775528,0.00020224,2]
[370513343,1752051063562,-837.99933892,0.00020224,2]
[370513344,1752051063571,-230.53906051,0.00020224,2]
[370513345,1752051063581,-160.0,0.00020224,2]
[370513346,1752051063590,-500.0,0.00020268,2]
[370513347,1752051063600,-460.0,0.00020273,2]
[370513348,1752051063609,-460.0,0.00020273,2]
[370513349,1752051063619,-460.0,0.00020273,2]
[370513350,1752051063628,-460.0,0.00020273,2]
[370513351,1752051063638,-460.0,0.00020273,2]
[370513352,1752051063647,-460.0,0.00020273,2]
[370513353,1752051063657,-460.0,0.00020273,2]
[370513354,1752051063666,-460.0,0.00020273,2]
[370513355,1752051063675,-458.0,0.00020273,2]
[370513356,1752051063687,-306.89527326,0.00020273,2]
[370513357,1752051063700,-153.10472674,0.00020273,2]
[370513358,1752051063710,-460.0,0.00020273,2]
[370513359,1752051063719,-460.0,0.00020273,2]
[370513360,1752051063729,-144.49506498,0.00020273,2]
[370513361,1752051063764,5000.0,0.00018001,2]
[370513362,1752051064065,-460.0,0.00019178,2]
[370513363,1752051064075,-38.70507329,0.00019178,2]
[370513364,1752051064118,-35459.96700703,0.0001846,2]
[370513365,1752051064132,-94893.35367685,0.0001846,2]
[370513366,1752051064146,-2000.0,0.0001846,2]
[370513367,1752051064157,-3139.90919649,0.0001846,2]
[370513368,1752051064271,217.62950287,0.00017906,2]
[370513369,1752051077188,-189.00136087,0.00018274,2]
[370513370,1752051078771,-293.04381784,0.00018274,2]
[370513371,1752051083971,-207.56689663,0.00018274,2]
[370513372,1752051086670,-153.44818953,0.00018274,2]
[370513376,1752051149640,-263.59344832,0.00018151,2]
[370513377,1752051165523,-236.40655168,0.00018151,2]
[370513378,1752051265296,5000.0,0.00018001,2]
[370513379,1752051298005,3731.2024,0.00017459,2]
[370513382,1752051475197,5000.0,0.00018001,2]
[370513383,1752051476874,-160.22022147,0.00018129,2]
[370513384,1752051491262,5000.0,0.00018001,2]
[370513385,1752051507871,5000.0,0.00018001,2]
[370513386,1752051523064,5000.0,0.00018001,2]
[370513387,1752051538285,5000.0,0.00018001,2]
[370513388,1752051554770,5000.0,0.00018001,2]
[370513390,1752051570047,5000.0,0.00018001,2]
[370513391,1752051586036,5000.0,0.00018001,2]
[370513392,1752051605326,5000.0,0.00018001,2]
[370513393,1752051620757,5000.0,0.00018001,2]
[370513394,1752051632372,240.121946,0.00013699,2]
[370513395,1752051637700,5000.0,0.00018001,2]
[370513397,1752051646346,-153.44818953,0.0001835,2]
[370513398,1752051646374,-614.81131824,0.00018359,2]
[370513399,1752051646403,-287.68,0.0001845,3]
[370513400,1752051646433,-863.06,0.0001845,3]
[370513401,1752051646460,-300.0,0.00018456,2]
[370513402,1752051646489,-262.00098446,0.00018456,2]
[370513403,1752051646592,-37.99901554,0.00018456,2]
[370513404,1752051646630,-1200.0,0.00018456,2]
[370513405,1752051646658,-1200.0,0.00018458,2]
[370513406,1752051646711,-200.0,0.00018459,2]
[370513407,1752051646743,-300.0,0.00018459,2]
[370513408,1752051646775,-293.04381784,0.00018459,2]
[370513409,1752051646812,-500.0,0.00018459,2]
[370513410,1752051646846,-620.33020783,0.00018459,2]
[370513411,1752051646880,-500.0,0.00018459,2]
[370513412,1752051647019,-611.4086671,0.00018459,2]
[370513413,1752051647066,-611.4086671,0.0001846,2]
[370513414,1752051647107,-3777.1826658,0.0001846,2]
[370513415,1752051647123,-5000.0,0.0001846,2]
[370513416,1752051647202,-5000.0,0.0001846,2]
[370513417,1752051647344,-5000.0,0.0001846,2]
[370513418,1752051647518,-5000.0,0.0001846,2]
[370513419,1752051652831,-5000.0,0.0001846,2]
[370513420,1752051653109,-5000.0,0.00018275,2]
[370513421,1752051653350,-5000.0,0.0001846,2]
[370513422,1752051653570,-5000.0,0.0001846,2]
[370513423,1752051653706,-5000.0,0.0001846,2]
[370513424,1752051656499,-217.20212589,0.00018459,2]
[370513425,1752051656539,-4565.59574822,0.0001846,2]
[370513426,1752051656649,-5000.0,0.0001846,2]
[370513427,1752051656820,-5000.0,0.0001846,2]
[370513428,1752051656992,-5000.0,0.0001846,2]
[370513429,1752051657168,-5000.0,0.0001846,2]
[370513430,1752051657357,-5000.0,0.0001846,2]
[370513431,1752051657517,-5000.0,0.0001846,2]
[370513432,1752051657706,-5000.0,0.0001846,2]
[370513433,1752051657975,-5000.0,0.0001846,2]
[370513434,1752051658407,-5000.0,0.0001846,2]
[370513435,1752051658610,-5000.0,0.0001846,2]
[370513436,1752051658848,-5000.0,0.0001846,2]
[370513437,1752051659036,-5000.0,0.0001846,2]
[370513438,1752051659186,-5000.0,0.0001846,2]
[370513439,1752051659352,-5000.0,0.0001846,2]
[370513440,1752051659563,-5000.0,0.0001846,2]
[370513441,1752051659730,-5000.0,0.0001846,2]
[370513442,1752051659903,-5000.0,0.0001846,2]
[370513443,1752051660083,-5000.0,0.0001846,2]
[370513444,1752051660320,-5000.0,0.0001846,2]
[370513445,1752051660547,-5000.0,0.0001846,2]
[370513446,1752051660749,-5000.0,0.0001846,2]
[370513447,1752051660998,-5000.0,0.0001846,2]
[370513448,1752051661182,-5000.0,0.0001846,2]
[370513449,1752051661386,-2356.36343277,0.0001846,2]
[370513450,1752051661413,-287.27313446,0.0001846,2]
[370513451,1752051661552,-1255.83167761,0.0001846,2]
[370513452,1752051668210,2488.33664478,0.000185,2]
[370513453,1752051668235,2511.66335522,0.000185,2]
[370513454,1752051683447,2488.33664478,0.000185,2]
[370513455,1752051683469,2511.66335522,0.000185,2]
[370513456,1752051688391,2488.33664478,0.0001836,2]
[370513457,1752051688415,5000.0,0.0001836,2]
[370513458,1752051688439,5000.0,0.0001836,2]
[370513459,1752051688463,5000.0,0.0001836,2]
[370513460,1752051688487,5000.0,0.0001836,2]
[370513461,1752051688511,5000.0,0.0001836,2]
[370513462,1752051688536,5000.0,0.0001836,2]
[370513463,1752051688559,5000.0,0.0001836,2]
[370513464,1752051688583,5000.0,0.0001836,2]
[370513465,1752051688605,5000.0,0.0001836,2]
[370513466,1752051688628,5000.0,0.0001836,2]
[370513467,1752051688649,5000.0,0.0001836,2]
[370513468,1752051688673,5000.0,0.0001836,2]
[370513469,1752051688696,5000.0,0.0001836,2]
[370513470,1752051688721,5000.0,0.0001836,2]
[370513471,1752051688743,5000.0,0.0001836,2]
[370513472,1752051688766,5000.0,0.0001836,2]
[370513473,1752051688790,5000.0,0.0001836,2]
[370513474,1752051688812,5000.0,0.0001836,2]
[370513475,1752051688836,5000.0,0.0001836,2]
[370513476,1752051697414,-170.60785128,0.00018129,2]
[370513477,1752051699268,5000.0,0.00018001,2]
[370513478,1752051714626,5000.0,0.00018001,2]
[370513479,1752051731229,5000.0,0.00018001,2]
[370513480,1752051745822,8043.5,0.00025416,60]
[370513481,1752051746561,5000.0,0.00018001,2]
[370513482,1752051762874,5000.0,0.00018001,2]
[370513483,1752051779009,5000.0,0.00018001,2]
[370513484,1752051792233,-223.122757,0.00018026,2]
[370513485,1752051792255,-0.29049363,0.00018129,2]
[370513486,1752051794355,-152.0,0.00018129,2]
[370513487,1752051795376,5000.0,0.00018001,2]
[370513488,1752051800597,-152.39683305,0.00018129,2]
[370513489,1752051803456,-189.00136087,0.00018129,2]
[370513490,1752051811854,-8.19674782,0.00018129,2]
[370513491,1752051813371,5000.0,0.00018001,2]
[370513492,1752051829650,5000.0,0.00018001,2]
[370513493,1752051845976,5000.0,0.00018001,2]
[370513494,1752051863637,5000.0,0.00018001,2]
[370513495,1752051880747,5000.0,0.00018001,2]
[370513496,1752051896361,5000.0,0.00018001,2]
[370513497,1752051912317,5000.0,0.00018001,2]
[370513498,1752051927679,5000.0,0.00018001,2]
[370513499,1752051944272,5000.0,0.00018001,2]
[370513500,1752051956793,342.29498875,0.00017809,2]
[370513501,1752051961375,5000.0,0.00018001,2]
[370513502,1752051977263,5000.0,0.00018001,2]
[370513503,1752051996447,5000.0,0.00018001,2]
[370513504,1752052000107,-689.05859986,0.00018259,2]
[370513505,1752052000314,-857.0690791,0.0001826,2]
[370513507,1752052013246,85.8618418,0.000183,2]
[370513508,1752052013271,1800.0,0.000183,2]
[370513509,1752052013295,1800.0,0.000183,2]
[370513510,1752052013318,1314.1381582,0.000183,2]
[370513511,1752052028515,485.8618418,0.000183,2]
[370513512,1752052028540,1800.0,0.000183,2]
[370513513,1752052028563,1800.0,0.000183,2]
[370513514,1752052028587,914.1381582,0.000183,2]
[370513515,1752052044448,885.8618418,0.000183,2]
[370513516,1752052044471,1800.0,0.000183,2]
[370513517,1752052044494,1800.0,0.000183,2]
[370513523,1752052225861,5000.0,0.00018001,2]
[370513539,1752052231960,-300.0,0.00018357,2]
[370513541,1752052231970,-500.0,0.00018358,2]
[370513543,1752052231979,-505.82092808,0.00018358,2]
[370513545,1752052231989,-157.19893146,0.00018358,2]
[370513547,1752052231998,-169.93398387,0.00018358,2]
[370513549,1752052232007,-386.90319999,0.00018358,2]
[370513551,1752052232018,-113.09680001,0.00018358,2]
[370513553,1752052232027,-500.0,0.00018358,2]
[370513554,1752052232036,-500.0,0.00018358,2]
[370513555,1752052232045,-513.80292767,0.00018358,2]
[370513556,1752052232055,-500.0,0.00018358,2]
[370513557,1752052232064,-612.0,0.00018358,2]
[370513558,1752052232074,-94737.24484729,0.0001836,2]
[370513559,1752052232083,-1255.83167761,0.000185,2]
[370513560,1752052232093,-500.0,0.00018612,2]
[370513561,1752052232102,-150.0,0.000189,2]
[370513562,1752052232111,-1196.37838551,0.00019078,2]
[370513563,1752052232120,-228.31140017,0.00019078,2]
[370513564,1752052232129,-205.84,0.00019163,3]
[370513565,1752052232138,-617.56,0.00019163,3]
[370513566,1752052232148,-151.0,0.00019166,2]
[370513567,1752052232157,-500.85840275,0.00019173,2]
[370513568,1752052232168,-500.52838055,0.00019173,2]
[370513569,1752052232177,-500.0,0.00019173,2]
[370513570,1752052232187,-500.0,0.00019173,2]
[370513571,1752052232197,-474.00059814,0.00019173,2]
[370513572,1752052232206,-500.0,0.00019173,2]
[370513573,1752052232216,-539.57237092,0.00019173,2]
[370513574,1752052232225,-500.0,0.00019173,2]
[370513575,1752052232234,-624.90490747,0.00019173,2]
[370513576,1752052232243,-500.0,0.00019173,2]
[370513577,1752052232252,-198.54547979,0.00019173,2]
[370513578,1752052232261,-500.0,0.00019173,2]
[370513579,1752052232271,-500.0,0.00019173,2]
[370513580,1752052232280,-501.13000489,0.00019173,2]
[370513581,1752052232290,-500.0,0.00019173,2]
[370513582,1752052232300,-500.0,0.00019173,2]
[370513583,1752052232309,-500.0,0.00019173,2]
[370513584,1752052232318,-500.0,0.00019173,2]
[370513585,1752052232327,-500.0,0.00019173,2]
[370513586,1752052232336,-500.51806795,0.00019173,2]
[370513587,1752052232345,-514.6037421,0.00019177,2]
[370513588,1752052232354,-500.0,0.00019177,2]
[370513589,1752052232363,-240.08700678,0.00019177,2]
[370513590,1752052232372,-460.0,0.00019178,2]
[370513591,1752052232381,-466.02551681,0.00019178,2]
[370513592,1752052232391,-460.0,0.00019178,2]
[370513593,1752052232400,-466.11982757,0.00019178,2]
[370513594,1752052232409,-612.33052594,0.00019178,2]
[370513595,1752052232419,-460.0,0.00019178,2]
[370513596,1752052232428,-251.71259356,0.00019178,2]
[370513597,1752052232438,-460.0,0.00019178,2]
[370513598,1752052232448,-460.46105792,0.00019178,2]
[370513599,1752052232458,-460.0,0.00019178,2]
[370513600,1752052232467,-460.0,0.00019178,2]
[370513601,1752052232476,-460.0,0.00019178,2]
[370513602,1752052232486,-460.0,0.00019178,2]
[370513603,1752052232495,-460.0,0.00019178,2]
[370513604,1752052232504,-460.0,0.00019178,2]
[370513605,1752052232513,-460.79953932,0.00019178,2]
[370513606,1752052232523,-460.0,0.00019178,2]
[370513607,1752052232532,-460.0,0.00019178,2]
[370513608,1752052232542,-460.0,0.00019178,2]
[370513609,1752052232551,-460.0,0.00019178,2]
[370513610,1752052232561,-460.0,0.00019178,2]
[370513611,1752052232571,-460.0,0.00019178,2]
[370513612,1752052232580,-460.0,0.00019178,2]
[370513613,1752052232589,-460.97857132,0.00019178,2]
[370513614,1752052232598,-460.0,0.00019178,2]
[370513615,1752052232607,-460.0,0.00019178,2]
[370513616,1752052232616,-460.0,0.00019178,2]
[370513617,1752052232625,-460.0,0.00019178,2]
[370513618,1752052232634,-461.18764477,0.00019178,2]
[370513619,1752052232643,-460.0,0.00019178,2]
[370513620,1752052232653,-460.0,0.00019178,2]
[370513621,1752052232662,-460.0,0.00019178,2]
[370513622,1752052232671,-460.0,0.00019178,2]
[370513623,1752052232681,-460.0,0.00019178,2]
[370513624,1752052232690,-460.0,0.00019178,2]
[370513625,1752052232699,-460.0,0.00019178,2]
[370513626,1752052232709,-460.60110635,0.00019178,2]
[370513627,1752052232718,-460.0,0.00019178,2]
[370513628,1752052232727,-441.77260675,0.00019178,2]
[370513629,1752052232737,-460.0,0.00019178,2]
[370513630,1752052232747,-460.56157795,0.00019178,2]
[370513631,1752052232756,-460.0,0.00019178,2]
[370513632,1752052232765,-460.0,0.00019178,2]
[370513633,1752052232774,-460.0,0.00019178,2]
[370513634,1752052232783,-460.0,0.00019178,2]
[370513635,1752052232792,-460.0,0.00019178,2]
[370513636,1752052232802,-460.0,0.00019178,2]
[370513637,1752052232812,-460.0,0.00019178,2]
[370513638,1752052232825,-461.34164117,0.00019178,2]
[370513639,1752052232835,-460.0,0.00019178,2]
[370513640,1752052232843,-460.0,0.00019178,2]
[370513641,1752052232852,-460.0,0.00019178,2]
[370513642,1752052232862,-460.0,0.00019178,2]
[370513643,1752052232871,-460.0,0.00019178,2]
[370513644,1752052232880,-460.0,0.00019178,2]
[370513645,1752052232889,-460.0,0.00019178,2]
[370513646,1752052232898,-460.0,0.00019178,2]
[370513647,1752052232908,-460.0,0.00019178,2]
[370513648,1752052232917,-460.0,0.00019178,2]
[370513649,1752052232926,-460.0,0.00019178,2]
[370513650,1752052232935,-268.40350713,0.00019178,2]
[370513651,1752052232945,-547.53652426,0.00019178,2]
[370513652,1752052232954,-460.0,0.00019178,2]
[370513653,1752052232963,-460.0,0.00019178,2]
[370513654,1752052232972,-460.0,0.00019178,2]
[370513655,1752052232982,-460.0,0.00019178,2]
[370513656,1752052232991,-460.0,0.00019178,2]
[370513657,1752052233000,-361.92834377,0.00019178,2]
[370513658,1752052233009,-285.72477329,0.00019178,2]
[370513659,1752052233018,-460.0,0.00019178,2]
[370513660,1752052233027,-460.0,0.00019178,2]
[370513661,1752052233037,-460.0,0.00019178,2]
[370513662,1752052233047,-460.0,0.00019178,2]
[370513663,1752052233056,-460.0,0.00019178,2]
[370513664,1752052233065,-460.0,0.00019178,2]
[370513665,1752052233075,-460.0,0.00019178,2]